bitfinex/quotes_ETHUSD_20220213
["timestamp","ask_amount","ask_price","bid_price","bid_amount"]
[1644786826204,0.86386,2896.2,2895.8,0.00399736]
[1644786826706,0.86386,2896.2,2896.0,0.00501699]
[1644786826902,1.72772,2896.2,2896.0,0.00501699]
[1644786827501,2.59156,2896.2,2896.0,0.00501699]
[1644786827702,2.59156,2896.2,2895.8,0.00399736]
[1644786828102,2.59156,2896.2,2896.0,0.01133662]
[1644786828946,2.59156,2896.2,2895.8,0.00399736]
[1644786829147,3.08756,2896.2,2896.0,0.0106747]
[1644786829353,1.1726,2896.1,2896.0,0.0106747]
[1644786829546,1.6686,2896.1,2896.0,0.0106747]
[1644786830149,0.86406,2896.0,2895.4,0.00399736]
[1644786830348,1.72798,2895.8,2895.5,0.04270555]
[1644786831347,1.72798,2895.8,2895.1,0.00399736]
[1644786831549,0.86398,2895.7,2895.5,0.01067548]
[1644786831950,1.72795,2895.7,2895.5,0.01067548]
[1644786832549,0.86398,2895.5,2895.1,0.00399736]
[1644786832804,0.86398,2895.5,2895.2,1.76894566]
[1644786833002,0.86398,2895.5,2895.2,0.3]
[1644786833201,0.86398,2895.5,2895.1,0.00399736]
[1644786833401,0.86398,2895.5,2895.2,1.46891456]
[1644786833804,0.86398,2895.5,2895.2,1.76891456]
[1644786834009,0.86398,2895.5,2895.2,0.31072053]
[1644786834205,0.86398,2895.5,2895.2,0.01072053]
[1644786834904,0.86402,2895.4,2895.1,0.00399736]
[1644786835104,0.86402,2895.4,2895.2,0.01072044]
[1644786836105,1.72803,2895.4,2895.1,0.00399736]
[1644786836305,1.72803,2895.4,2895.2,0.01072053]
[1644786837357,1.72803,2895.4,2895.1,0.00399736]
[1644786837549,1.72803,2895.4,2894.8,0.005936]
[1644786837550,0.1726,2895.3,2895.2,0.01071757]
[1644786838547,1.03678,2895.3,2894.8,0.005936]
[1644786838749,0.86418,2895.2,2895.1,0.01071765]
[1644786839750,2.59271,2895.1,2894.8,0.005936]
[1644786839954,2.59271,2895.1,2894.6,0.02745425]
[1644786840214,0.86426,2895.0,2894.6,0.03145201]
[1644786840804,1.72852,2895.0,2894.6,0.03145201]
[1644786841004,3.45704,2895.0,2894.6,0.00399776]
[1644786842004,0.86428,2894.8,2894.6,0.00399776]
[1644786842204,1.72856,2894.8,2894.6,0.00399776]
[1644786843505,0.86428,2894.8,2894.6,0.00399776]
[1644786843706,0.86417,2894.9,2894.6,0.00399776]
[1644786844544,0.86417,2894.9,2894.5,0.3]
[1644786844746,0.86423,2894.7,2894.5,0.01134112]
[1644786844945,1.72852,2894.7,2894.5,0.01134112]
[1644786845748,1.72852,2894.7,2894.4,0.00399776]
[1644786845947,1.72852,2894.7,2894.5,0.01134079]
[1644786846948,1.72852,2894.7,2894.4,0.00399776]
[1644786847148,1.72852,2894.7,2894.5,0.01134079]
[1644786848201,1.72852,2894.7,2894.4,0.4496]
[1644786848400,1.72852,2894.7,2894.5,0.01134079]
[1644786849200,1.72852,2894.7,2894.5,4.079e-05]
[1644786849411,1.72852,2894.7,2894.4,0.45359776]
[1644786849412,0.496,2894.6,2894.4,0.45359776]
[1644786849602,0.496,2894.6,2893.8,0.0192137]
[1644786849603,0.86458,2894.4,2893.8,0.0182137]
[1644786849803,1.53326,2894.3,2893.8,0.0182137]
[1644786850604,3.26245,2894.3,2893.8,0.0182137]
[1644786850803,1.72889,2894.2,2893.7,0.97207206]
[1644786851006,2.76656,2894.6,2893.3,25.0685137]
[1644786851007,0.1726,2894.6,2893.3,25.0685137]
[1644786851204,1.204,2894.7,2893.4,1.46945264]
[1644786851205,4.8766,2894.7,2893.4,1.46945264]
[1644786851450,4.8766,2894.7,2893.2,2.68875264]
[1644786851451,7.70852993,2894.7,2893.2,2.68875264]
[1644786851648,0.496,2894.6,2893.3,1.46945264]
[1644786851854,0.1726,2894.5,2893.3,1.46945264]
[1644786852052,0.86446,2893.9,2893.3,1.46945264]
[1644786852648,0.1726,2894.0,2893.3,1.76945264]
[1644786852853,0.1726,2894.0,2893.5,1.1452913]
[1644786853049,0.1726,2894.0,2893.2,3.8]
[1644786853247,0.86442,2894.2,2893.3,1.46962895]
[1644786853449,0.1726,2894.1,2893.3,1.46962895]
[1644786853648,0.1726,2894.1,2893.4,1.46962895]
[1644786854049,0.1726,2894.1,2893.3,1.12609705]
[1644786854249,0.1726,2894.1,2893.3,1.42609705]
[1644786854250,1.03705,2894.1,2893.3,1.42609705]
[1644786854449,1.72896,2893.9,2893.8,1.04262743]
[1644786854651,0.1726,2894.5,2893.9,1.5675285]
[1644786854849,5.21133268,2894.7,2894.3,1.05713329]
[1644786854850,0.1726,2894.6,2894.3,1.05713329]
[1644786855052,0.01133268,2894.7,2894.0,3.86545801]
[1644786855301,3.5,2894.8,2894.0,0.9848]
[1644786855802,0.87554422,2894.7,2894.3,0.01133574]
[1644786856301,2.03978422,2894.7,2894.3,0.01133574]
[1644786856601,1.16424,2894.7,2893.9,1.8685285]
[1644786857001,1.17557433,2894.7,2894.4,0.01133566]
[1644786857701,1.17557433,2894.7,2893.9,1.8685285]
[1644786857702,1.16424,2894.7,2893.9,1.8685285]
[1644786858001,2.03977444,2894.7,2894.4,0.01133577]
[1644786858206,0.1726,2894.6,2894.4,0.01133577]
[1644786859046,0.1726,2894.6,2893.9,1.8685285]
[1644786859246,0.1726,2894.6,2894.4,0.01071471]
[1644786860249,0.1726,2894.6,2893.9,5.26142688]
[1644786860450,0.1726,2894.6,2894.4,0.01071471]
[1644786861249,0.1726,2894.6,2893.9,1.8685285]
[1644786861649,0.1726,2894.6,2894.4,0.01008847]
[1644786862252,1.90126,2894.6,2894.4,0.01008847]
[1644786862449,1.90126,2894.6,2893.9,1.8675285]
[1644786862706,1.90126,2894.6,2893.9,1.8685285]
[1644786862897,1.72866,2894.6,2894.4,0.01008847]
[1644786863401,1.72859,2894.5,2894.4,0.01008847]
[1644786863798,1.72863,2894.5,2893.9,1.8685285]
[1644786864099,2.59307,2894.5,2894.3,0.01016739]
[1644786864499,0.86435,2894.4,2894.3,0.01016739]
[1644786864800,1.03695,2894.4,2894.3,0.01016739]
[1644786865099,1.90127,2894.4,2894.2,0.01016754]
[1644786865905,1.03692,2894.4,2894.2,0.01016754]
[1644786866102,0.86432,2894.4,2894.0,0.0039857]
[1644786866302,0.86432,2894.4,2894.2,0.01020344]
[1644786866553,0.1726,2894.3,2894.2,0.01020344]
[1644786867252,0.1726,2894.3,2894.0,0.0039857]
[1644786867453,1.03694,2894.3,2894.0,0.0039857]
[1644786867654,1.03694,2894.3,2894.1,0.01019467]
[1644786868054,1.9013,2894.3,2894.1,0.01019467]
[1644786868459,1.8513,2894.3,2894.0,0.0039857]
[1644786868857,0.98694,2894.3,2894.1,0.01019474]
[1644786869056,1.28694,2894.3,2894.1,1.06742755]
[1644786869257,0.3,2894.3,2894.1,1.36742755]
[1644786869555,0.86427,2894.6,2894.1,1.36742755]
[1644786869756,0.86427,2894.6,2894.1,1.36121851]
[1644786869957,0.86427,2894.6,2894.1,1.37141195]
[1644786870600,0.01019119,2894.7,2894.2,3.38767281]
[1644786870801,0.01019119,2894.7,2894.6,1.04237955]
[1644786871009,0.4226,2895.0,2894.6,1.04237955]
[1644786871201,5.03353486,2896.1,2894.6,3.07414525]
[1644786871202,0.01019188,2894.7,2894.6,3.07414525]
[1644786871403,0.01019188,2894.7,2894.6,4.48930116]
[1644786871602,0.01019188,2894.7,2894.6,5.48930116]
[1644786872201,0.25,2895.8,2894.7,0.86386]
[1644786872399,0.86389,2895.9,2894.8,1.46914161]
[1644786872601,0.1726,2895.8,2894.8,1.47312741]
[1644786872802,1.2157,2896.1,2894.8,0.0039858]
[1644786872803,0.1726,2895.9,2894.8,0.0039858]
[1644786873100,0.1726,2896.0,2894.8,3.66606928]
[1644786873301,0.1726,2896.0,2895.2,0.94382444]
[1644786873605,0.01019075,2895.5,2895.2,1.24382444]
[1644786874653,0.8639,2895.8,2895.2,1.24382444]
[1644786874855,0.0107413,2895.5,2895.2,1.24382444]
[1644786875054,0.0107413,2895.5,2894.9,3.65780159]
[1644786875653,0.1726,2895.7,2894.9,3.65780159]
[1644786876059,0.01074156,2895.3,2894.9,3.65780159]
[1644786876361,0.01074156,2895.3,2894.9,3.73169144]
[1644786876957,2.02781,2895.8,2894.9,3.73169144]
[1644786877157,0.0107104,2895.2,2894.9,3.73169144]
[1644786877897,1.9885204,2895.8,2895.1,0.95104148]
[1644786878397,1.9885204,2895.8,2895.1,1.25104148]
[1644786878599,1.72788,2895.7,2895.1,1.25104148]
[1644786878902,1.72788,2895.7,2895.1,0.3]
[1644786879099,1.72788,2895.7,2894.9,0.3]
[1644786879299,2.02788,2895.7,2894.8,21.7262858]
[1644786879498,0.1726,2895.6,2894.8,21.7262858]
[1644786879698,0.1726,2895.6,2894.9,3.34244834]
[1644786881001,0.00635715,2895.4,2894.9,3.34244834]
[1644786881201,0.00635715,2895.4,2894.8,1.2062858]
[1644786881457,0.00635715,2895.4,2894.8,1.5062858]
[1644786881753,0.3,2895.5,2894.9,3.41708084]
[1644786882153,0.0113331,2895.3,2894.9,3.41708084]
[1644786883053,0.1726,2895.4,2894.9,3.41708084]
[1644786883254,0.0113331,2895.3,2894.9,3.41708084]
[1644786884253,0.1726,2895.4,2894.9,3.41708084]
[1644786884655,0.1726,2895.5,2894.9,3.41708084]
[1644786885053,0.1726,2895.6,2894.8,20.52]
[1644786885699,0.01133853,2895.3,2894.8,20.52]
[1644786886604,0.1726,2895.6,2894.8,20.52]
[1644786886902,0.0113382,2895.3,2894.8,20.52]
[1644786887701,0.1726,2895.7,2894.8,20.52]
[1644786887901,4.28562625,2895.7,2894.8,0.3]
[1644786888105,0.0113382,2895.3,2894.8,0.3]
[1644786888401,0.1726,2895.2,2894.7,3.47324077]
[1644786888601,0.1726,2895.2,2894.7,0.31134077]
[1644786888802,0.1726,2895.2,2894.7,0.01134077]
[1644786889050,0.1726,2895.2,2894.6,6.4278858]
[1644786889254,0.1726,2895.2,2894.7,0.01134055]
[1644786890260,0.1726,2895.2,2894.5,0.7496]
[1644786890550,1.72808,2895.4,2894.7,0.01134055]
[1644786890551,0.18393798,2895.3,2894.7,0.01134055]
[1644786890751,1.04800798,2895.3,2894.7,0.01134055]
[1644786890954,3.28252098,2895.2,2894.7,0.01134055]
[1644786891153,0.6686,2895.1,2894.7,0.01134055]
[1644786891353,3.34910015,2895.0,2894.5,0.4496]
[1644786891552,0.1726,2894.9,2894.5,0.4496]
[1644786891760,1.1726,2894.9,2894.7,0.01134055]
[1644786891953,2.03687,2894.9,2894.7,0.01134055]
[1644786892154,2.90112,2894.9,2894.7,0.01134055]
[1644786892355,0.3,2894.8,2894.7,0.01134055]
[1644786892554,0.3,2894.8,2894.5,0.4496]
[1644786892802,0.3,2894.8,2894.5,0.7496]
[1644786893000,0.3,2894.8,2894.7,0.01134035]
[1644786893900,0.86424,2894.7,2894.5,0.7496]
[1644786894100,0.86424,2894.7,2894.6,0.0111278]
[1644786895098,0.86424,2894.7,2894.5,0.7496]
[1644786895299,0.1726,2894.6,2894.5,0.76072796]
[1644786896099,0.1726,2894.6,2894.5,0.7496]
[1644786896749,1.03684,2894.7,2894.5,0.7496]
[1644786897149,0.86424,2894.7,2894.5,0.7496]
[1644786897556,0.86424,2894.7,2894.5,0.76033385]
[1644786898454,2.59281,2894.7,2894.5,0.76033385]
[1644786898653,2.59281,2894.7,2894.5,0.7496]
[1644786898954,5.8927854,2894.7,2894.5,0.76033385]
[1644786899352,2.59281,2894.7,2894.5,0.76033385]
[1644786899853,2.59281,2894.7,2894.5,0.7496]
[1644786899854,0.1726,2894.6,2894.5,0.7496]
[1644786900054,0.1726,2894.6,2894.5,0.76033385]
[1644786900900,0.1726,2894.6,2894.5,0.7496]
[1644786901303,0.1726,2894.6,2894.5,0.7483021]
[1644786901505,0.1726,2894.6,2894.5,0.3]
[1644786901702,0.1726,2894.6,2894.5,0.748]
[1644786901903,0.1726,2894.7,2894.5,0.748]
[1644786902108,0.3,2894.8,2894.5,0.748]
[1644786902305,0.1726,2895.3,2894.6,1.46930091]
[1644786902504,0.138263,2895.5,2895.1,0.99815037]
[1644786902505,0.1726,2895.4,2895.1,0.99815037]
[1644786902804,0.138263,2895.5,2895.1,1.29815037]
[1644786904850,0.01132704,2895.4,2895.1,1.29815037]
[1644786905051,0.1726,2895.8,2895.2,4.45]
[1644786905251,1.72772,2896.0,2895.2,24.80819997]
[1644786905252,0.1726,2896.0,2895.2,24.80819997]
[1644786905453,1.1137,2896.2,2895.3,22.68895064]
[1644786905652,0.8637,2896.2,2895.4,20.22]
[1644786905854,3.5,2896.7,2895.4,21.08363]
[1644786905855,3.6726,2896.7,2895.4,21.08363]
[1644786906052,0.1726,2896.7,2896.1,1.03157255]
[1644786906252,0.1726,2896.8,2896.1,1.33157255]
[1644786906454,0.1726,2896.6,2896.1,1.33157255]
[1644786906654,0.1726,2896.8,2896.1,1.33157255]
[1644786906854,0.86358,2896.9,2896.1,1.33157255]
[1644786907055,0.1726,2896.8,2896.1,1.33157255]
[1644786907257,0.1726,2896.8,2896.1,0.3]
[1644786907457,1.03623,2896.8,2896.1,0.3]
[1644786907713,1.03623,2896.8,2895.3,1.86369]
[1644786907714,0.86363,2896.7,2895.3,1.86369]
[1644786907898,0.1726,2896.6,2895.4,1.46886672]
[1644786908099,0.86371,2896.5,2895.4,1.46886672]
[1644786908301,1.16371,2896.5,2895.4,3.86893245]
[1644786908500,1.16371,2896.5,2895.4,1.40006573]
[1644786909299,0.64136594,2896.0,2895.4,1.40006573]
[1644786910903,0.01132793,2895.8,2895.4,1.40006573]
[1644786911751,0.64136594,2896.0,2895.4,1.40006573]
[1644786911950,0.64136594,2896.0,2895.5,1.46879468]
[1644786912250,0.0113281,2895.7,2895.4,1.40006573]
[1644786912849,0.0113281,2895.7,2895.5,1.46879156]
[1644786913050,0.64136594,2896.0,2895.4,1.40006573]
[1644786913249,0.01132819,2895.7,2895.4,3.12736573]
[1644786913450,0.01132819,2895.7,2895.4,0.3]
[1644786913651,0.01132819,2895.7,2895.3,0.3]
[1644786913951,0.01132819,2895.7,2895.2,0.43819997]
[1644786914252,0.1726,2895.9,2895.1,0.03437354]
[1644786914253,0.86394,2895.8,2895.1,0.03437354]
[1644786914453,0.18392827,2895.6,2895.1,0.0457038]
[1644786914651,0.64136594,2895.4,2895.1,0.0457038]
[1644786915058,0.64136594,2895.4,2895.1,0.01133026]
[1644786915504,0.1726,2895.3,2894.5,0.448]
[1644786915704,1.33666,2895.3,2895.1,0.01132984]
[1644786916306,4.65747117,2895.3,2895.1,0.01132984]
[1644786916505,3.28168202,2895.2,2895.1,0.01132984]
[1644786916705,0.86419,2895.1,2894.5,0.448]
[1644786916906,0.86419,2894.9,2894.6,1.46931255]
[1644786917106,0.1726,2894.8,2894.6,1.46931255]
[1644786917710,0.1726,2894.8,2894.6,1.76931255]
[1644786917906,0.1726,2894.8,2894.6,0.3]
[1644786918208,0.1726,2894.8,2894.6,0.01133078]
[1644786919054,0.1726,2894.8,2894.5,0.748]
[1644786919251,0.1726,2894.8,2894.6,1.48063336]
[1644786919453,0.1726,2894.8,2894.6,0.01133078]
[1644786919854,0.64136594,2894.7,2894.6,0.01133078]
[1644786920155,0.64136594,2894.7,2894.6,1.46929688]
[1644786922708,0.64136594,2894.7,2894.5,0.448]
[1644786922912,1.30996594,2894.7,2894.5,0.01133087]
[1644786923706,1.30996594,2894.7,2893.0,2.20917945]
[1644786923707,4.65,2894.5,2893.0,2.20917945]
[1644786923911,0.86482,2894.0,2893.1,1.46976781]
[1644786924108,5.03342,2893.9,2893.1,1.46976781]
[1644786924305,1.0,2893.8,2893.1,1.46976781]
[1644786924505,6.8648,2893.7,2893.0,0.0047478]
[1644786924705,0.3,2893.6,2893.0,0.0037478]
[1644786924906,0.86482,2893.4,2893.0,0.0037478]
[1644786925105,0.496,2893.3,2893.0,0.0037478]
[1644786925306,0.49348297,2893.2,2893.0,0.0037478]
[1644786925611,0.496,2893.1,2893.0,0.0037478]
[1644786925806,0.6688,2893.1,2893.0,0.0037478]
[1644786926656,4.81491,2893.1,2893.0,0.0037478]
[1644786927957,1.36086,2893.1,2893.0,0.0037478]
[1644786929060,4.64168079,2893.1,2893.0,0.0037478]
[1644786929459,5.64168079,2893.1,2893.0,0.0037478]
[1644786929859,5.81448079,2893.1,2893.0,0.0037478]
[1644786930511,6.45584673,2893.1,2893.0,0.0037478]
[1644786930705,6.45584673,2893.1,2892.8,1.84e-05]
[1644786930706,4.6537,2893.0,2892.8,1.84e-05]
[1644786930912,5.21513,2892.8,2892.5,0.04534122]
[1644786931106,5.7129575,2892.7,2892.4,0.0169861]
[1644786931506,2.73015,2892.6,2892.1,0.0017305]
[1644786931705,4.47872901,2892.5,2892.1,0.0017305]
[1644786931906,2.73026,2892.4,2892.1,0.0017305]
[1644786932106,0.86511,2892.2,2892.1,0.0017305]
[1644786932305,5.76106881,2892.2,2892.1,0.0017305]
[1644786932505,5.06106881,2892.2,2892.1,0.01306547]
[1644786932706,6.06106881,2892.2,2892.1,0.01306547]
[1644786933006,5.06106881,2892.2,2892.1,0.01306547]
[1644786933206,6.06106881,2892.2,2892.1,0.01306547]
[1644786933412,6.06106881,2892.2,2892.1,0.0017305]
[1644786933607,6.23386881,2892.2,2892.1,0.0017305]
[1644786935854,6.87523475,2892.2,2892.1,0.0017305]
[1644786937255,6.87523475,2892.2,2890.5,21.084]
[1644786937256,4.65,2892.1,2892.0,3.514e-05]
[1644786937459,4.65,2892.1,2890.5,1.00219997]
[1644786937460,1.73081,2891.8,2890.5,0.864]
[1644786937710,6.196,2891.0,2890.5,0.864]
[1644786937909,0.6689,2890.9,2890.5,0.864]
[1644786938311,0.496,2890.9,2890.8,0.99313521]
[1644786938715,0.496,2890.9,2890.5,0.864]
[1644786939308,0.496,2890.9,2890.5,1.164]
[1644786939708,1.16541,2890.8,2890.6,0.85310166]
[1644786939908,1.16541,2890.8,2890.6,0.00394713]
[1644786940108,1.16541,2890.8,2890.5,1.164]
[1644786940308,2.89648,2890.8,2890.5,1.164]
[1644786940908,2.89648,2890.8,2890.5,1.17533764]
[1644786941109,0.64136594,2890.6,2890.5,1.17533764]
[1644786941954,0.64136594,2890.6,2890.5,1.164]
[1644786942556,0.64136594,2890.6,2890.5,0.865]
[1644786942759,1.16541,2890.8,2890.6,0.92801416]
[1644786942955,1.16541,2890.8,2890.6,0.92901416]
[1644786943156,2.16541,2890.8,2890.6,0.92901416]
[1644786943357,0.496,2890.7,2890.6,0.94035172]
[1644786943556,0.6689,2890.7,2890.6,0.94035172]
[1644786943757,0.6689,2890.7,2890.6,1.24035172]
[1644786944155,0.496,2890.7,2890.6,1.24035172]
[1644786944361,2.76983,2891.2,2890.6,1.22901416]
[1644786944362,0.1729,2891.2,2890.6,1.22901416]
[1644786944558,0.25,2891.8,2890.7,0.00494713]
[1644786944559,3.6729,2891.3,2890.7,0.00494713]
[1644786944757,3.5,2891.3,2890.7,0.00494713]
[1644786945200,0.01133279,2891.7,2890.7,0.00494713]
[1644786945401,0.1729,2891.4,2890.7,0.00494713]
[1644786945600,0.1729,2891.6,2890.7,0.00494713]
[1644786945803,0.1729,2891.6,2890.9,0.01133706]
[1644786945804,1.73046,2891.5,2890.9,0.01133706]
[1644786946006,2.22684,2891.4,2890.9,0.01133706]
[1644786946203,0.1729,2891.3,2890.9,0.01133706]
[1644786946402,0.496,2891.2,2890.9,0.01133706]
[1644786946708,3.68878749,2891.1,2890.7,0.00494713]
[1644786946902,2.22718,2891.0,2890.9,0.01133697]
[1644786947103,7.26954422,2891.0,2890.9,0.01133697]
[1644786948102,1.73094,2890.9,2890.7,0.00494713]
[1644786948304,1.90384,2890.9,2890.8,0.01133714]
[1644786948502,5.76284066,2890.9,2890.8,0.01133714]
[1644786948958,6.76284066,2890.9,2890.8,0.01133714]
[1644786949152,1.6689,2890.9,2890.7,0.00494713]
[1644786949356,2.53431,2890.9,2890.7,0.01500083]
[1644786949552,1.36141,2890.9,2890.7,0.01500083]
[1644786950355,1.36141,2890.9,2890.7,0.00494713]
[1644786950561,1.36141,2890.9,2890.1,2.52848476]
[1644786950562,2.84626,2890.5,2890.1,2.52848476]
[1644786950756,2.59626,2890.5,2890.1,1.42967619]
[1644786951154,2.59626,2890.5,2890.2,0.5]
[1644786951358,0.3,2890.4,2890.2,0.5]
[1644786951555,1.16539,2890.4,2890.2,0.5]
[1644786951958,1.16539,2890.4,2890.2,1.43805832]
[1644786952355,1.16539,2890.4,2890.3,0.3]
[1644786953912,0.25,2891.3,2890.3,24.49401]
[1644786954131,3.5,2891.1,2890.6,0.01215288]
[1644786954307,3.5,2891.1,2890.7,0.86417837]
[1644786954705,3.5,2891.1,2890.7,1.16417837]
[1644786955106,3.8,2891.1,2890.7,1.16417837]
[1644786955306,0.0113331,2891.0,2890.8,1.73016]
[1644786955508,0.0113331,2891.0,2890.9,0.3]
[1644786955707,0.0113331,2891.0,2890.9,0.301]
[1644786956309,2.03014,2891.2,2890.9,0.301]
[1644786956559,0.01133302,2891.1,2890.9,0.301]
[1644786957558,4.66506,2891.2,2890.9,0.301]
[1644786957764,0.0106683,2891.1,2890.9,0.301]
[1644786958760,0.86529,2891.1,2890.9,0.301]
[1644786958959,0.86529,2891.1,2890.6,0.86532]
[1644786958960,0.8760083,2891.1,2890.6,0.86532]
[1644786959161,0.8760083,2891.1,2890.5,0.001]
[1644786959361,0.1729,2891.0,2890.5,0.001]
[1644786959560,5.40393,2891.0,2890.2,0.001]
[1644786959764,0.3,2890.9,2890.2,1.17543037]
[1644786959960,2.59636,2890.7,2890.3,0.001]
[1644786960204,0.1729,2890.6,2890.3,0.81641]
[1644786960609,3.6729,2890.6,2890.3,0.81641]
[1644786960807,0.3,2890.5,2890.3,0.001]
[1644786961010,0.1729,2890.4,2890.1,0.01067151]
[1644786961207,0.1729,2890.4,2889.7,0.001]
[1644786961407,0.8656,2890.3,2890.1,0.01071572]
[1644786961606,0.1729,2890.2,2890.1,0.01071572]
[1644786962208,4.36563,2890.3,2890.1,0.51071572]
[1644786962412,4.36563,2890.3,2890.1,0.5]
[1644786962606,4.36563,2890.3,2890.1,0.8]
[1644786962607,4.37634404,2890.3,2890.1,0.8]
[1644786962807,1.94144448,2890.3,2890.1,0.8]
[1644786963006,1.94144448,2890.3,2890.1,0.801]
[1644786963208,1.56229852,2890.3,2890.1,21.021]
[1644786963407,1.73039,2891.0,2890.3,4.65]
[1644786963607,1.73039,2891.0,2890.4,3.9860439]
[1644786963807,0.25,2891.3,2890.8,0.3]
[1644786964058,0.1729,2891.2,2891.0,0.86516]
[1644786964256,2.59587,2891.2,2891.0,0.3]
[1644786964458,2.59587,2891.2,2890.9,0.001]
[1644786964663,0.86551,2890.9,2890.3,0.93195574]
[1644786964856,0.1729,2890.8,2890.2,0.001]
[1644786965254,0.1729,2890.8,2890.1,0.86547]
[1644786965456,0.1729,2890.8,2890.0,0.001]
[1644786965457,0.86546,2890.7,2890.0,0.001]
[1644786965656,0.1729,2890.6,2890.0,0.001]
[1644786965857,0.86554,2890.5,2890.0,0.001]
[1644786966059,1.16554,2890.5,2889.8,0.001]
[1644786966257,1.16554,2890.5,2890.1,0.00482426]
[1644786966858,2.03113,2890.5,2890.1,0.00482426]
[1644786967059,2.03113,2890.5,2889.8,0.00492609]
[1644786967259,0.86553,2890.3,2889.8,0.00492609]
[1644786967456,0.1729,2890.2,2889.8,0.00492609]
[1644786968007,0.1729,2890.2,2889.9,0.86553]
[1644786968207,0.86557,2890.1,2889.9,0.86553]
[1644786968405,0.1729,2890.0,2889.9,0.86553]
[1644786968705,0.1729,2890.0,2889.9,1.16553]
[1644786968907,0.1729,2890.0,2889.9,1.16653]
[1644786969106,0.1729,2890.0,2889.9,0.301]
[1644786969307,0.1729,2890.0,2889.8,0.00392609]
[1644786969507,1.7314,2889.9,2889.6,0.017541]
[1644786969706,0.4729,2889.8,2889.6,0.017541]
[1644786969908,0.4729,2889.8,2889.7,0.04035807]
[1644786970711,2.20425,2889.8,2889.7,0.04035807]
[1644786973559,5.53756957,2889.8,2889.7,0.04035807]
[1644786974458,5.36466957,2889.8,2889.7,0.04035807]
[1644786975059,2.03135,2889.8,2889.7,0.04035807]
[1644786977116,0.86568,2889.8,2889.7,0.04035807]
[1644786978811,1.16568,2889.8,2889.7,0.04035807]
[1644786979659,0.86568,2889.8,2889.7,0.04035807]
[1644786981063,1.16568,2889.8,2889.7,0.04035807]
[1644786983106,1.11568,2889.8,2889.7,0.04035807]
[1644786983310,0.86547,2890.1,2889.7,0.04035807]
[1644786983707,0.86547,2890.1,2889.7,0.90584807]
[1644786983908,0.86547,2890.1,2889.7,0.91077416]
[1644786984108,0.86547,2890.1,2889.8,0.3]
[1644786984307,0.86547,2890.1,2889.8,0.31171954]
[1644786984509,1.16547,2890.1,2889.8,0.31171954]
[1644786985209,1.16547,2890.1,2889.8,0.301]
[1644786985408,0.86562,2890.0,2889.8,0.3]
[1644786985708,0.86562,2890.0,2889.8,0.01071737]
[1644786986308,0.86562,2890.0,2889.8,0.31071737]
[1644786986561,0.86562,2890.0,2889.7,0.04035807]
[1644786986861,0.86562,2890.0,2889.8,0.01071745]
[1644786987661,0.86562,2890.0,2889.7,0.04035807]
[1644786987861,0.86562,2890.0,2889.7,0.34035807]
[1644786988062,0.86562,2890.0,2889.8,0.01071745]
[1644786988863,0.86562,2890.0,2889.7,0.04035807]
[1644786989063,0.86562,2890.0,2889.8,0.01071416]
[1644786990208,0.86562,2890.0,2889.7,0.04035807]
[1644786990405,0.86562,2890.0,2889.8,0.01071416]
[1644786991011,1.16547,2890.1,2889.8,0.01071416]
[1644786991206,1.16547,2890.1,2889.8,0.3]
[1644786991405,1.16547,2890.1,2889.8,0.301]
[1644786991607,1.16547,2890.1,2889.8,0.31171416]
[1644786991806,1.16547,2890.1,2889.8,0.31071416]
[1644786992207,0.86564,2890.0,2889.8,0.31071416]
[1644786992509,0.86564,2890.0,2889.8,0.3]
[1644786992707,0.86564,2890.0,2889.8,0.31071506]
[1644786992909,0.86564,2890.0,2889.8,0.01171506]
[1644786993810,1.16547,2890.1,2889.8,0.01171515]
[1644786994255,1.16547,2890.1,2890.0,1.01247841]
[1644786994461,0.86549,2890.3,2890.0,1.01347841]
[1644786994658,0.01071259,2890.4,2890.1,0.001]
[1644786994857,3.5,2890.7,2890.1,0.00492609]
[1644786995256,0.1729,2890.9,2890.1,0.00492609]
[1644786995257,0.01035155,2890.4,2890.1,0.00492609]
[1644786995455,0.87573155,2890.4,2890.1,0.00492609]
[1644786995857,1.17573155,2890.4,2890.1,0.00492609]
[1644786996059,1.16538,2890.4,2890.1,0.00492609]
[1644786996262,1.17573151,2890.4,2890.1,0.01527883]
[1644786997058,1.17573151,2890.4,2890.1,1.74592883]
[1644786997257,1.16538,2890.4,2890.2,0.301]
[1644786997456,1.17573151,2890.4,2890.2,0.301]
[1644786998309,1.17573151,2890.4,2890.2,0.251]
[1644786998509,1.16538,2890.4,2890.2,0.251]
[1644786998710,1.17578262,2890.4,2890.2,0.251]
[1644786998915,0.31040262,2890.4,2890.2,0.251]
[1644786999310,0.01040262,2890.4,2890.2,0.251]
[1644786999709,1.73078,2890.6,2890.2,0.251]
[1644787000011,0.01041474,2890.4,2890.2,0.25492609]
[1644787000810,0.86534,2890.5,2890.2,0.25492609]
[1644787001216,0.31041474,2890.4,2890.2,0.25492609]
[1644787002059,0.3,2890.4,2890.2,0.25492609]
[1644787002258,0.31016392,2890.4,2890.2,0.25492609]
[1644787003259,0.3,2890.4,2890.2,0.25492609]
[1644787003460,0.31016139,2890.4,2890.2,0.25492609]
[1644787004462,0.3,2890.4,2890.2,0.25492609]
[1644787004661,0.31016139,2890.4,2890.2,0.25492609]
[1644787005711,0.3,2890.4,2890.2,0.25492609]
[1644787005910,0.3101784,2890.4,2890.2,0.25492609]
[1644787006112,0.3101784,2890.4,2890.2,0.20492609]
[1644787006911,0.3,2890.4,2890.2,0.20492609]
[1644787007111,0.31018696,2890.4,2890.2,0.20492609]
[1644787008111,0.3,2890.4,2890.2,0.20492609]
[1644787008313,0.31018696,2890.4,2890.2,0.20492609]
[1644787009159,0.3,2890.4,2890.2,0.20492609]
[1644787009558,0.31018553,2890.4,2890.2,0.20492609]
[1644787010464,0.3,2890.4,2890.2,0.20492609]
[1644787010661,0.01018438,2890.4,2890.2,0.20492609]
[1644787011560,0.1729,2891.0,2890.2,0.20492609]
[1644787011964,0.01018438,2890.4,2890.3,0.86529]